bitfinex/quotes_BTCUSD_20240823
["timestamp","ask_amount","ask_price","bid_price","bid_amount"]
[1724441396011,0.111,63823.0,63805.0,0.313454]
[1724441396232,0.111,63823.0,63807.0,0.156721]
[1724441396431,0.111,63823.0,63802.0,0.313465]
[1724441396432,0.111,63823.0,63816.0,0.005]
[1724441397305,0.1,63823.0,63816.0,0.005]
[1724441397482,0.4448,63822.0,63816.0,0.005]
[1724441397723,0.001,63819.0,63816.0,0.005]
[1724441397943,0.1,63821.0,63816.0,0.005]
[1724441398155,0.2651,63817.0,63816.0,0.005]
[1724441398370,0.3651,63817.0,63816.0,0.005]
[1724441398571,0.3361,63817.0,63816.0,0.005]
[1724441398783,0.3381,63817.0,63816.0,0.005]
[1724441399213,0.3391,63817.0,63816.0,0.005]
[1724441399636,0.525,63817.0,63816.0,0.005]
[1724441400309,0.526,63817.0,63816.0,3.6e-07]
[1724441400487,0.548,63817.0,63816.0,3.6e-07]
[1724441400723,0.552,63817.0,63816.0,3.6e-07]
[1724441400947,0.548,63817.0,63816.0,3.6e-07]
[1724441401386,0.719698,63817.0,63816.0,3.6e-07]
[1724441401590,0.536,63817.0,63816.0,3.6e-07]
[1724441402003,0.552826,63817.0,63816.0,3.6e-07]
[1724441402229,0.1839,63803.0,63776.0,0.2364]
[1724441402461,0.2727,63802.0,63801.0,0.49229154]
[1724441402669,0.3727,63802.0,63777.0,0.313589]
[1724441402901,0.3727,63802.0,63779.0,0.313579]
[1724441403327,0.3727,63802.0,63781.0,0.16400298]
[1724441403541,0.3727,63802.0,63783.0,0.15678]
[1724441403744,0.3727,63802.0,63783.0,0.32078298]
[1724441403952,0.42886,63802.0,63783.0,0.16400298]
[1724441404192,0.01213957,63801.0,63777.0,0.313589]
[1724441404390,0.2727,63796.0,63772.0,0.156807]
[1724441404604,0.001,63792.0,63769.0,0.156814]
[1724441404819,0.2727,63791.0,63770.0,0.156812]
[1724441405026,0.1,63790.0,63770.0,0.156812]
[1724441405252,0.2574,63787.0,63769.0,0.49229154]
[1724441405461,0.1853,63785.0,63769.0,0.49229154]
[1724441405873,0.1,63784.0,63769.0,0.49229154]
[1724441406496,0.1,63784.0,63771.0,0.313618]
[1724441406700,0.1,63784.0,63773.0,0.156805]
[1724441406905,0.09996,63784.0,63767.0,0.0009075]
[1724441407321,0.09996,63784.0,63767.0,0.1577275]
[1724441407533,0.09996,63784.0,63767.0,0.0009075]
[1724441407749,0.28,63783.0,63767.0,0.0009075]
[1724441407964,0.28,63781.0,63767.0,0.0009075]
[1724441408369,0.29214232,63781.0,63767.0,0.0009075]
[1724441408549,0.29214232,63781.0,63768.0,0.156817]
[1724441408786,0.29214232,63781.0,63767.0,0.0009075]
[1724441408988,0.001,63776.0,63767.0,0.0009075]
[1724441409191,0.1,63776.0,63768.0,0.49229154]
[1724441409390,0.1,63776.0,63767.0,0.0009075]
[1724441409797,0.1,63776.0,63767.0,0.16491048]
[1724441409998,0.1,63776.0,63767.0,0.0009075]
[1724441410625,0.2799,63777.0,63768.0,0.156817]
[1724441410829,0.006,63776.0,63767.0,0.0009075]
[1724441411560,0.2799,63777.0,63767.0,0.0009075]
[1724441412253,0.2799,63777.0,63768.0,0.156817]
[1724441412452,0.2799,63777.0,63767.0,0.0009075]
[1724441412811,0.2819,63777.0,63767.0,0.156819]
[1724441413025,0.2819,63777.0,63769.0,0.156814]
[1724441413371,0.002,63777.0,63770.0,0.313623]
[1724441413508,0.002,63777.0,63768.0,0.313633]
[1724441413711,0.3559,63783.0,63771.0,0.15681]
[1724441413912,0.3559,63783.0,63768.0,0.16400298]
[1724441413913,0.002,63777.0,63769.0,0.313629]
[1724441414120,0.002,63777.0,63761.0,0.009075]
[1724441414331,0.001,63779.0,63761.0,0.009075]
[1724441414522,0.001,63779.0,63767.0,0.0009086]
[1724441414523,0.2719,63778.0,63767.0,0.0009086]
[1724441414903,0.023,63781.0,63767.0,0.0009086]
[1724441414904,0.2749,63773.0,63767.0,0.0009086]
[1724441415945,0.11214489,63772.0,63767.0,0.0009086]
[1724441416195,0.01214489,63771.0,63767.0,0.0009086]
[1724441416500,0.612718,63768.0,63767.0,0.0009086]
[1724441416702,0.93849889,63768.0,63767.0,0.0009086]
[1724441416990,1.06149889,63768.0,63767.0,0.0009086]
[1724441417119,0.4539,63762.0,63761.0,0.009075]
[1724441417326,0.5769,63762.0,63761.0,0.009075]
[1724441417528,0.58904734,63762.0,63761.0,0.009075]
[1724441417815,0.733733,63762.0,63761.0,0.009075]
[1724441417953,0.733733,63762.0,63753.0,0.0009075]
[1724441417954,0.001,63757.0,63753.0,0.0009075]
[1724441418159,0.2801,63755.0,63753.0,0.0009075]
[1724441418520,0.2965,63754.0,63753.0,0.0009075]
[1724441419124,0.5766,63754.0,63750.0,0.009075]
[1724441419362,0.2801,63745.0,63732.0,0.49229154]
[1724441419693,0.753738,63743.0,63729.0,0.009075]
[1724441419906,0.774738,63743.0,63729.0,0.009075]
[1724441420166,0.874738,63743.0,63729.0,0.009075]
[1724441420387,0.001,63740.0,63729.0,0.009075]
[1724441420588,0.2801,63739.0,63729.0,0.009075]
[1724441420795,0.1,63738.0,63729.0,0.009075]
[1724441421171,0.2801,63747.0,63731.0,0.16400298]
[1724441421379,0.2801,63747.0,63736.0,0.156897]
[1724441421380,0.012,63743.0,63736.0,0.156897]
[1724441421623,0.012,63743.0,63737.0,0.16400298]
[1724441422250,0.00245868,63743.0,63742.0,0.313764]
[1724441422465,0.1866,63783.0,63756.0,0.313695]
[1724441422675,0.283,63809.0,63780.0,0.16400298]
[1724441422876,0.283,63809.0,63784.0,0.313553]
[1724441423077,0.04771,63808.0,63785.0,0.16400298]
[1724441423303,0.001,63808.0,63785.0,0.16400298]
[1724441423516,0.01213709,63807.0,63787.0,0.1199]
[1724441423759,0.001,63808.0,63774.0,0.366]
[1724441423983,0.0121382,63806.0,63783.0,0.49229154]
[1724441424188,0.001,63807.0,63784.0,0.32078098]
[1724441424407,0.001,63807.0,63780.0,0.156788]
[1724441424408,0.01213848,63805.0,63780.0,0.156788]
[1724441424606,0.01213848,63805.0,63774.0,0.365]
[1724441424607,0.01213848,63804.0,63781.0,0.16400298]
[1724441424816,0.04681,63806.0,63781.0,0.16400298]
[1724441424817,0.2665,63803.0,63781.0,0.16400298]
[1724441425105,0.1,63802.0,63781.0,0.16400298]
[1724441425518,0.1,63802.0,63785.0,0.001]
[1724441425720,0.0571036,63801.0,63781.0,0.16400298]
[1724441426085,0.0571036,63801.0,63781.0,0.16500298]
[1724441426268,0.1,63802.0,63781.0,0.16400298]
[1724441426475,0.1,63802.0,63782.0,0.156783]
[1724441426720,0.1,63802.0,63783.0,0.16400298]
[1724441426933,0.106,63802.0,63785.0,0.001]
[1724441427126,0.106,63802.0,63765.0,0.1]
[1724441427127,0.101,63802.0,63765.0,0.1]
[1724441427332,0.26,63794.0,63767.0,0.61119154]
[1724441427532,0.01213874,63793.0,63781.0,0.001]
[1724441427780,0.11213874,63793.0,63781.0,0.001]
[1724441427893,0.01213874,63792.0,63781.0,0.001]
[1724441428319,0.156765,63790.0,63781.0,0.001]
[1724441428525,0.4533,63788.0,63781.0,0.001]
[1724441429302,0.05543,63787.0,63767.0,0.49229154]
[1724441429527,0.4533,63788.0,63768.0,0.16400298]
[1724441429748,0.4533,63788.0,63770.0,0.137812]
[1724441429969,0.4533,63788.0,63771.0,0.16400298]
[1724441430385,0.4563,63788.0,63771.0,0.47762398]
[1724441430593,0.4563,63788.0,63772.0,0.156807]
[1724441430834,0.4563,63788.0,63772.0,0.32080998]
[1724441431041,0.4563,63788.0,63772.0,0.16400298]
[1724441432340,0.4563,63788.0,63761.0,0.0009086]
[1724441432341,0.2742,63785.0,63761.0,0.0009086]
[1724441432553,0.01214191,63784.0,63772.0,0.001]
[1724441432758,0.001,63783.0,63772.0,0.001]
[1724441432964,0.1,63784.0,63762.0,0.16400298]
[1724441433162,0.01214239,63783.0,63762.0,0.16200298]
[1724441433379,0.156785,63782.0,63762.0,0.16200298]
[1724441433594,0.1,63784.0,63761.0,0.0009086]
[1724441433595,0.11214246,63781.0,63761.0,0.0009086]
[1724441433801,0.2718,63779.0,63761.0,0.0009086]
[1724441434016,0.01214246,63778.0,63761.0,0.0009086]
[1724441434217,0.11214246,63778.0,63762.0,0.16400298]
[1724441434425,0.1,63778.0,63762.0,0.16400298]
[1724441434909,0.006,63784.0,63762.0,0.16400298]
[1724441434910,0.006,63784.0,63764.0,0.2461]
[1724441435129,0.006,63784.0,63765.0,0.16400298]
[1724441435549,0.006,63784.0,63761.0,0.0009086]
[1724441435550,0.06356,63784.0,63761.0,0.0009086]
[1724441435750,0.156784,63782.0,63762.0,0.16400298]
[1724441435956,0.1,63781.0,63761.0,0.0009086]
[1724441436157,0.2622,63780.0,63761.0,0.16491158]
[1724441436399,0.40915549,63780.0,63761.0,0.16491158]
[1724441436592,0.56594449,63780.0,63761.0,0.16491158]
[1724441436800,0.40915549,63780.0,63761.0,0.16491158]
[1724441437014,0.1,63779.0,63761.0,0.0009086]
[1724441437214,0.01214341,63778.0,63761.0,0.0009086]
[1724441437422,0.05212989,63777.0,63761.0,0.0009086]
[1724441438181,0.1,63779.0,63761.0,0.0009086]
[1724441438385,0.01214388,63778.0,63761.0,0.0009086]
[1724441438639,0.1,63779.0,63762.0,0.0009086]
[1724441438837,0.0121439,63778.0,63762.0,0.0009086]
[1724441439043,0.1,63779.0,63762.0,0.0009086]
[1724441439245,0.0121439,63778.0,63762.0,0.0009086]
[1724441439444,0.2849,63774.0,63762.0,0.0009086]
[1724441439650,0.1,63773.0,63762.0,0.0009086]
[1724441440906,0.101,63773.0,63762.0,0.0009086]
[1724441441721,0.4656,63772.0,63762.0,0.0009086]
[1724441441921,0.0880206,63771.0,63762.0,0.0009086]
[1724441442157,0.1880206,63771.0,63762.0,0.0009086]
[1724441442379,0.3448326,63771.0,63762.0,0.0009086]
[1724441442568,0.34464386,63771.0,63762.0,0.0009086]
[1724441442774,0.1,63771.0,63762.0,0.0009086]
[1724441443215,0.2621,63770.0,63762.0,0.0009086]
[1724441443441,0.27424667,63770.0,63762.0,0.0009086]
[1724441443655,0.11214656,63769.0,63762.0,0.0009086]
[1724441443869,0.001,63761.0,63731.0,0.49229154]
[1724441444080,0.43859967,63750.0,63748.0,0.49229154]
[1724441444289,0.1,63749.0,63732.0,0.16400298]
[1724441444497,0.11214656,63749.0,63732.0,0.16400298]
[1724441444701,0.1,63749.0,63732.0,0.16400298]
[1724441445125,0.33266982,63759.0,63733.0,0.8604295]
[1724441445333,0.0121491,63758.0,63734.0,0.16400298]
[1724441445544,0.0121491,63757.0,63734.0,0.16400298]
[1724441445719,0.3626,63759.0,63734.0,0.32090398]
[1724441445890,0.3626,63759.0,63734.0,0.16400298]
[1724441446097,0.3626,63759.0,63733.0,0.365]
[1724441446098,0.001,63757.0,63733.0,0.365]
[1724441446304,0.156851,63755.0,63734.0,0.65629452]
[1724441446505,0.1,63754.0,63734.0,0.16400298]
[1724441447054,0.1,63754.0,63734.0,0.16500298]
[1724441447275,0.285,63753.0,63734.0,0.001]
[1724441447451,0.01215045,63752.0,63735.0,0.16400298]
[1724441447626,0.1,63752.0,63735.0,0.16400298]
[1724441447838,0.006,63757.0,63742.0,0.313762]
[1724441448041,0.006,63757.0,63743.0,0.16400298]
[1724441448642,0.285,63759.0,63743.0,0.16400298]
[1724441448810,0.59105421,63759.0,63743.0,0.16400298]
[1724441449019,0.006,63755.0,63736.0,0.247]
[1724441449231,0.16285,63755.0,63736.0,0.247]
[1724441449427,0.156853,63754.0,63736.0,0.247]
[1724441449631,0.1,63753.0,63743.0,0.001]
[1724441449864,0.1,63753.0,63737.0,0.16400298]
[1724441450262,0.2809,63752.0,63731.0,0.247]
[1724441450467,0.1,63751.0,63732.0,0.16400298]
[1724441450891,0.1,63751.0,63730.0,0.009086]
[1724441451092,0.156881,63743.0,63730.0,0.009086]
[1724441451300,0.2587,63743.0,63730.0,0.009086]
[1724441451501,0.1,63742.0,63730.0,0.009086]
[1724441452338,0.13607,63742.0,63737.0,0.0009086]
[1724441452536,0.1,63742.0,63737.0,0.0009086]
[1724441452738,0.156888,63740.0,63737.0,0.0009086]
[1724441452965,0.1,63742.0,63737.0,0.0009086]
[1724441452966,0.470676,63738.0,63737.0,0.0009086]
[1724441453167,0.757376,63738.0,63737.0,0.0009086]
[1724441453569,0.443592,63738.0,63737.0,0.0009086]
[1724441453796,0.757376,63738.0,63737.0,0.0019086]
[1724441454031,0.627638,63731.0,63730.0,0.009086]
[1724441454204,1.061447,63731.0,63730.0,0.009086]
[1724441454421,1.249682,63728.0,63727.0,0.009075]
[1724441454634,1.249682,63728.0,63689.0,0.314025]
[1724441454635,0.001,63727.0,63689.0,0.314025]
[1724441454802,0.001,63727.0,63709.0,0.49229154]
[1724441454803,0.4009,63727.0,63709.0,0.49229154]
[1724441455003,0.4009,63727.0,63690.0,0.009086]
[1724441455004,0.313864,63722.0,63691.0,0.314012]
[1724441455206,0.2769,63719.0,63697.0,0.247]
[1724441455408,0.1,63718.0,63697.0,0.247]
[1724441456035,0.256942,63718.0,63709.0,0.001]
[1724441456363,0.1,63718.0,63697.0,0.247]
[1724441456775,0.1,63718.0,63706.0,0.00311746]
[1724441457610,0.1,63718.0,63707.0,0.247]
[1724441458046,0.2711,63726.0,63707.0,0.247]
[1724441458047,0.1,63725.0,63707.0,0.247]
[1724441458499,0.001,63718.0,63707.0,0.247]
[1724441458723,0.11528167,63724.0,63707.0,0.247]
[1724441458943,0.001,63718.0,63707.0,0.247]
[1724441459176,0.001,63718.0,63706.0,0.16412044]
[1724441459177,0.156939,63719.0,63706.0,0.00011746]
[1724441459407,0.1,63723.0,63706.0,0.00011746]
[1724441459633,0.2711,63718.0,63706.0,0.00011746]
[1724441459861,0.156945,63717.0,63706.0,0.00011746]
[1724441460308,0.313887,63717.0,63706.0,0.00011746]
[1724441460310,0.313903,63714.0,63706.0,0.00011746]
[1724441460574,0.2802,63716.0,63706.0,0.00011746]
[1724441460801,0.313909,63713.0,63706.0,0.00011746]
[1724441461032,0.09898997,63715.0,63706.0,0.00011746]
[1724441461033,0.001,63711.0,63706.0,0.00011746]
[1724441461266,0.2578,63712.0,63706.0,0.00011746]
[1724441461505,0.156962,63710.0,63706.0,0.00011746]
[1724441461745,0.2578,63712.0,63706.0,0.00011746]
[1724441462218,0.1,63711.0,63706.0,0.00011746]
[1724441462469,0.762926,63710.0,63706.0,0.00011746]
[1724441462700,0.449,63710.0,63706.0,0.00011746]
[1724441463174,0.1,63709.0,63706.0,0.00011746]
[1724441463903,0.006,63712.0,63706.0,0.00011746]
[1724441464136,0.006,63712.0,63706.0,0.00102606]
[1724441464602,0.2649,63722.0,63706.0,0.00102606]
[1724441464839,0.004,63710.0,63706.0,0.00102606]
[1724441465065,0.0449,63721.0,63706.0,0.00102606]
[1724441465346,0.2649,63722.0,63707.0,0.16400298]
[1724441465587,0.001,63712.0,63707.0,0.247]
[1724441465822,0.313847,63726.0,63707.0,0.247]
[1724441466059,0.001,63710.0,63707.0,0.247]
[1724441466292,0.1080682,63725.0,63707.0,0.247]
[1724441466518,0.1080682,63725.0,63707.0,0.247482]
[1724441466718,0.1,63724.0,63707.0,0.247482]
[1724441466918,0.07060052,63723.0,63707.0,0.247482]
[1724441467327,0.1,63724.0,63707.0,0.247482]
[1724441467706,0.003,63722.0,63707.0,0.247482]
[1724441467889,0.1,63724.0,63707.0,0.247482]
[1724441468285,0.160931,63723.0,63707.0,0.247482]
[1724441468516,0.1,63722.0,63707.0,0.247482]
[1724441468926,0.102,63722.0,63707.0,0.247482]
[1724441469150,0.1,63722.0,63707.0,0.247482]
[1724441469347,0.188462,63722.0,63707.0,0.247482]
[1724441469551,0.2821,63721.0,63707.0,0.000482]
[1724441469875,0.2831,63721.0,63707.0,0.000482]
[1724441470227,0.47,63712.0,63707.0,0.000482]
[1724441470444,0.1,63711.0,63707.0,0.000482]
[1724441472916,0.1040853,63710.0,63707.0,0.000482]
[1724441473160,0.1,63709.0,63707.0,0.000482]
[1724441473374,0.156966,63708.0,63707.0,0.000482]
[1724441473578,0.1,63708.0,63707.0,0.000482]
[1724441474507,0.1,63710.0,63707.0,0.000482]
[1724441474977,0.1,63711.0,63707.0,0.000482]
[1724441475324,0.313861,63723.0,63707.0,0.000482]
[1724441475325,0.4684,63725.0,63707.0,0.121282]
[1724441475572,0.49977583,63725.0,63707.0,0.121282]
[1724441475781,0.49977583,63725.0,63708.0,0.16400298]
[1724441475782,0.001,63709.0,63708.0,0.16400298]
[1724441475963,0.003,63746.0,63708.0,0.16400298]
[1724441475964,0.1822,63741.0,63720.0,0.313868]
[1724441476205,0.2711,63745.0,63724.0,0.313849]
[1724441476409,0.1862,63748.0,63731.0,0.156908]
[1724441476616,0.1862,63748.0,63732.0,0.16400298]
[1724441476837,0.2801,63752.0,63735.0,0.156898]
[1724441477048,0.1862,63755.0,63736.0,0.16400298]
[1724441477254,1.5893,63760.0,63738.0,0.247]
[1724441477459,1.5893,63760.0,63740.0,0.2306]
[1724441477668,1.5893,63760.0,63745.0,0.156874]
[1724441477879,1.5893,63760.0,63746.0,0.16400298]
[1724441478498,1.5943,63760.0,63746.0,0.16400298]
[1724441478907,1.5893,63760.0,63746.0,0.16400298]
[1724441479381,1.5893,63760.0,63740.0,0.231082]
[1724441479382,1.75327878,63760.0,63740.0,0.231082]
[1724441479624,1.54478314,63760.0,63754.0,0.2306]
[1724441479815,1.54478314,63760.0,63753.0,0.1198]
[1724441479816,1.54478314,63760.0,63757.0,0.16400298]
[1724441480023,1.54478314,63760.0,63758.0,0.2306]
[1724441480230,1.54478314,63760.0,63759.0,0.16400298]
[1724441480640,1.54578314,63760.0,63759.0,0.16400298]
[1724441481299,1.54478314,63760.0,63759.0,0.16400298]
[1724441481473,1.54578314,63760.0,63759.0,0.16400298]
[1724441481890,1.54478314,63760.0,63759.0,0.16400298]
[1724441482093,1.54582314,63760.0,63759.0,0.16400298]
[1724441482295,1.54482314,63760.0,63759.0,0.16400298]
[1724441482506,1.54482314,63760.0,63751.0,0.2306]
[1724441482713,1.54482314,63760.0,63746.0,0.3504]
[1724441482926,1.54482314,63760.0,63747.0,0.16400298]
[1724441483750,1.54582314,63760.0,63747.0,0.16400298]
[1724441483955,1.54482314,63760.0,63747.0,0.16400298]
[1724441484408,1.54582314,63760.0,63747.0,0.16400298]
[1724441485209,1.54482314,63760.0,63747.0,0.16400298]
[1724441485436,1.54582314,63760.0,63747.0,0.16400298]
[1724441486842,1.54482314,63760.0,63747.0,0.16400298]
[1724441487043,0.2728,63759.0,63747.0,0.16400298]
[1724441487619,0.2728,63759.0,63740.0,0.000482]
[1724441487620,0.1997,63758.0,63740.0,0.000482]
[1724441487822,0.2997,63758.0,63740.0,0.000482]
[1724441489914,0.3067,63758.0,63740.0,0.000482]
[1724441490115,0.307527,63758.0,63740.0,0.000482]
[1724441490492,0.2703,63757.0,63740.0,0.000482]
[1724441490637,0.2703,63754.0,63740.0,0.000482]
[1724441490859,0.181,63753.0,63740.0,0.000482]
[1724441491066,0.2703,63751.0,63740.0,0.000482]
[1724441491670,0.1,63750.0,63740.0,0.000482]
[1724441494058,0.2797,63757.0,63741.0,0.39460298]
[1724441494192,0.002,63750.0,63740.0,0.000482]
[1724441494393,0.2797,63757.0,63740.0,0.000482]
[1724441494824,0.002,63750.0,63740.0,0.000482]
[1724441496004,0.002,63750.0,63740.0,0.16448498]
[1724441496207,0.2797,63757.0,63741.0,0.28380298]
[1724441496945,0.2797,63757.0,63741.0,0.28694024]
[1724441497120,0.002,63750.0,63741.0,0.28694024]
[1724441497339,0.2797,63757.0,63741.0,0.28694024]
[1724441497475,0.2797,63757.0,63741.0,0.28380298]
[1724441497678,0.2797,63757.0,63741.0,0.16400298]
[1724441497879,0.34178628,63757.0,63741.0,0.16400298]
[1724441498081,0.2807,63757.0,63741.0,0.16400298]
[1724441499207,0.2797,63757.0,63741.0,0.16400298]
[1724441499637,0.2797,63757.0,63742.0,0.49229154]
[1724441499811,0.181427,63758.0,63744.0,0.2306]
[1724441502796,0.2579,63756.0,63741.0,0.16400298]
[1724441504682,0.2579,63756.0,63740.0,0.0013906]
[1724441504867,0.26397878,63755.0,63740.0,0.0013906]
[1724441505080,0.2579,63752.0,63740.0,0.0013906]
[1724441505875,0.1,63751.0,63740.0,0.0013906]
[1724441506084,0.2579,63750.0,63740.0,0.0013906]
[1724441507530,0.2589,63750.0,63740.0,0.0013906]
[1724441507735,0.1837,63749.0,63740.0,0.0013906]
[1724441507936,0.2565,63748.0,63740.0,0.0013906]
[1724441508527,0.1864,63747.0,63740.0,0.0013906]
[1724441508729,0.4536,63743.0,63740.0,0.0013906]
[1724441508887,0.2864,63742.0,63740.0,0.0013906]
[1724441509083,0.36340224,63741.0,63740.0,1e-07]
[1724441509280,0.3652,63741.0,63740.0,1e-07]
[1724441509479,0.46321372,63741.0,63740.0,1e-07]
[1724441510172,0.65581372,63741.0,63740.0,1e-07]
[1724441510372,0.66796775,63741.0,63740.0,1e-07]
[1724441511171,0.1926,63735.0,63706.0,0.23092606]
[1724441511395,0.11035652,63734.0,63706.0,0.23092606]
[1724441511633,0.1946,63735.0,63706.0,0.23092606]
[1724441511634,0.21035652,63733.0,63706.0,0.23092606]
[1724441511875,0.11035652,63732.0,63706.0,0.23092606]
[1724441512108,0.40495652,63731.0,63706.0,0.00102606]
[1724441512319,0.1926,63729.0,63706.0,0.00102606]
[1724441512511,0.11215403,63728.0,63706.0,0.00102606]
[1724441512777,0.29245403,63727.0,63706.0,0.00102606]
[1724441513009,0.43859967,63722.0,63706.0,0.00102606]
[1724441513257,0.002,63719.0,63706.0,0.00102606]
[1724441513488,0.4428,63716.0,63706.0,0.00102606]
[1724441513698,0.36650265,63715.0,63706.0,0.00102606]
[1724441513897,0.252,63713.0,63706.0,0.00102606]
[1724441514028,0.11215771,63712.0,63706.0,0.00102606]
[1724441514227,0.252,63710.0,63706.0,0.00102606]
[1724441514434,0.36415771,63710.0,63706.0,0.00102606]
[1724441515508,0.352,63710.0,63706.0,0.00102606]
[1724441516053,0.36415961,63710.0,63706.0,0.00102606]
[1724441516457,0.352,63710.0,63706.0,0.00102606]
[1724441516669,0.01216032,63710.0,63706.0,0.00102606]
[1724441517092,0.005,63710.0,63698.0,0.009086]
[1724441517325,0.005,63710.0,63699.0,0.16400298]
[1724441517539,0.005,63710.0,63700.0,0.00313952]
[1724441517745,0.005,63710.0,63701.0,0.16400298]
[1724441517949,0.005,63710.0,63698.0,0.009086]
[1724441518159,0.005,63710.0,63699.0,0.16400298]
[1724441518374,0.005,63710.0,63698.0,0.009086]
[1724441518599,0.2526,63714.0,63709.0,0.0009086]
[1724441520035,0.2566,63714.0,63709.0,0.0009086]
[1724441520243,0.1,63713.0,63709.0,0.0009086]
[1724441521507,0.2708,63722.0,63709.0,0.0009086]
[1724441522143,0.003,63714.0,63709.0,0.0009086]
[1724441522375,0.2708,63722.0,63709.0,0.0009086]
[1724441522803,0.2718,63722.0,63709.0,0.0009086]
[1724441523076,0.2708,63722.0,63710.0,0.16400298]
[1724441523490,0.001,63714.0,63710.0,0.16400298]
[1724441525074,0.2687,63714.0,63709.0,0.0009086]
[1724441525313,0.1,63728.0,63709.0,0.0009086]
[1724441525471,0.2677,63727.0,63709.0,0.0009086]
[1724441525629,0.001,63722.0,63709.0,0.0009086]
[1724441525835,0.1,63726.0,63709.0,0.0009086]
[1724441526041,0.1,63726.0,63710.0,0.16400298]
[1724441526272,0.001,63714.0,63711.0,0.00313898]
[1724441526477,0.1,63726.0,63712.0,0.16400298]
[1724441526675,0.001,63722.0,63709.0,0.0009086]
[1724441526880,0.001,63722.0,63710.0,0.16400298]
[1724441527128,0.001,63722.0,63709.0,0.0009086]
[1724441527329,0.2714,63721.0,63709.0,0.0009086]
[1724441527702,0.183,63720.0,63709.0,0.0009086]
[1724441528118,0.3714,63719.0,63709.0,0.0009086]
[1724441528428,0.001,63714.0,63709.0,0.0009086]
[1724441529227,0.3714,63719.0,63709.0,0.0009086]
[1724441529427,0.05544,63718.0,63709.0,0.0009086]
[1724441529662,0.001,63714.0,63709.0,0.0009086]
[1724441530248,0.001,63714.0,63710.0,0.0009086]
[1724441530954,0.3714,63719.0,63710.0,0.0009086]
[1724441531152,0.1975,63737.0,63711.0,0.16400298]
[1724441531401,0.43773524,63736.0,63711.0,0.16400298]
[1724441531598,0.01215646,63735.0,63711.0,0.16400298]
[1724441531797,0.42557878,63736.0,63711.0,0.16400298]
[1724441531798,0.01215646,63734.0,63711.0,0.16400298]
[1724441531952,0.001,63714.0,63711.0,0.16400298]
[1724441532800,0.278,63733.0,63711.0,0.16400298]
[1724441533002,0.01215558,63732.0,63711.0,0.16400298]
[1724441533200,0.001,63714.0,63711.0,0.16400298]
[1724441534404,0.1,63732.0,63711.0,0.16400298]
[1724441534601,0.01215548,63731.0,63711.0,0.16400298]
[1724441534801,0.01215548,63730.0,63711.0,0.16400298]
[1724441535160,0.01215548,63729.0,63711.0,0.16400298]
[1724441535362,0.001,63714.0,63711.0,0.16400298]
[1724441535642,0.01215548,63729.0,63710.0,0.0009086]
[1724441535643,0.4638,63713.0,63710.0,0.0009086]
[1724441535845,0.2642,63713.0,63710.0,0.0009086]
[1724441536017,0.01,63730.0,63710.0,0.0009086]
[1724441536018,0.4638,63721.0,63711.0,0.16400298]
[1724441536217,0.16397878,63736.0,63711.0,0.16400298]
[1724441536218,0.01215676,63720.0,63711.0,0.16400298]
[1724441536487,0.4777,63732.0,63712.0,0.1058]
[1724441536643,0.01215428,63731.0,63713.0,0.16400298]
[1724441536851,0.01215428,63730.0,63713.0,0.16400298]
[1724441537087,0.01215428,63729.0,63713.0,0.16400298]
[1724441537289,0.01215428,63728.0,63713.0,0.16400298]
[1724441537650,0.1,63731.0,63713.0,0.16400298]
[1724441537840,0.001,63714.0,63713.0,0.16400298]
[1724441537995,0.1,63731.0,63713.0,0.16400298]
[1724441538197,0.01215408,63730.0,63713.0,0.16400298]
[1724441538400,0.1,63731.0,63713.0,0.16400298]
[1724441538401,0.001,63729.0,63713.0,0.16400298]
[1724441538601,0.01215399,63729.0,63713.0,0.16400298]
[1724441538763,0.1,63731.0,63713.0,0.16400298]
[1724441538965,0.001,63714.0,63713.0,0.16400298]
[1724441539166,0.1,63731.0,63713.0,0.16400298]
[1724441539373,0.01215404,63730.0,63713.0,0.16400298]
[1724441539573,0.01315404,63729.0,63713.0,0.16400298]
[1724441539773,0.01215404,63728.0,63713.0,0.16400298]
[1724441540905,0.1,63731.0,63713.0,0.16400298]
[1724441540906,0.01215404,63727.0,63713.0,0.16400298]
[1724441541228,0.001,63714.0,63713.0,0.16400298]
[1724441541448,0.1,63731.0,63713.0,0.16400298]
[1724441541669,0.01215467,63730.0,63713.0,0.16400298]
[1724441541824,0.01215467,63729.0,63713.0,0.16400298]
[1724441542031,0.01215467,63728.0,63713.0,0.16400298]
[1724441542193,0.01215467,63727.0,63713.0,0.16400298]
[1724441542390,0.001,63714.0,63710.0,0.0009086]
[1724441543014,0.2751,63713.0,63710.0,0.0009086]
[1724441543418,0.001,63714.0,63710.0,0.0009086]
[1724441543618,0.001,63714.0,63711.0,0.39540298]
[1724441543850,0.2528,63725.0,63711.0,0.39540298]
[1724441544054,0.1943,63726.0,63711.0,0.39540298]
[1724441544254,0.01215468,63725.0,63711.0,0.39540298]
[1724441544481,0.04818547,63725.0,63710.0,0.0009086]
[1724441544689,0.184,63722.0,63710.0,0.0009086]
[1724441544901,0.38578258,63721.0,63710.0,0.0009086]
[1724441545081,0.11038258,63720.0,63710.0,0.0009086]
[1724441545270,0.001,63714.0,63710.0,0.0009086]
[1724441545478,0.01215723,63713.0,63710.0,0.0009086]
[1724441547449,0.01215723,63712.0,63710.0,0.0009086]
[1724441548283,0.1,63717.0,63710.0,0.0009086]
[1724441548487,0.001,63712.0,63710.0,0.0007546]
[1724441548693,0.001,63712.0,63710.0,0.16475758]
[1724441553331,0.001,63712.0,63711.0,0.39854202]
[1724441553559,0.001,63712.0,63711.0,0.39540298]
[1724441553803,0.001,63712.0,63711.0,0.39640298]
[1724441554041,0.001,63712.0,63711.0,0.52720298]
[1724441554282,0.001,63712.0,63711.0,0.62920298]